Cogmind - Beta 17 @@@ ROGUE MODE // 2026.06.24 @ 20:27:21 Player: Bren Result: Destroyed by S-10 Pest with Light Assault Rifle Performance ------------- Evolutions (0) 0 Regions Visited (1) 200 Robots Destroyed (9) 45 Value Destroyed (181) 181 Prototype IDs (0) 0 Alien Tech Used (0) 0 Bonus (0) 0 TOTAL SCORE: 426 Bonus ------- None Cogmind --------- Core Integrity 0/250 Matter 259/300 Energy 125/125 System Corruption 1% Temperature Cool (0) Movement Core (1500) Ox29 Location -10/Materials Parts ------- > --- POWER (1) -------- Light Ion Engine > --- PROPULSION (2) --- (None) > --- UTILITY (2) ------ Small Storage Unit Huge Storage Unit > --- WEAPON (2) ------- (None) > --- INVENTORY (25) --- (None) Peak State ------------ > --- POWER ------------ Light Ion Engine > --- PROPULSION ------- Light Treads Light Treads > --- UTILITY ---------- Heat Sink Small Storage Unit > --- WEAPON ----------- Assault Rifle Light Assault Rifle > --- INVENTORY -------- Grenade Launcher [Rating: 7] Favorites ----------- Power Light Ion Engine Engine Light Ion Engine Propulsion Light Treads Treads Light Treads Utility Huge Storage Unit Device Heat Sink Storage Huge Storage Unit Weapon Small Laser Energy Gun Small Laser Ballistic Gun Assault Rifle Launcher Grenade Launcher Build | -11 -10 ------- Run | Yrd Mat Slots Evolved . | . . Power . | . . Propulsion . | . . Utility . | . . Weapon . | . . Parts Attached 11 | 6 5 Power 2 | 1 1 Engine 2 | 1 1 Core . | . . Reactor . | . . Propulsion 2 | 2 . Treads 2 | 2 . Leg . | . . Wheel . | . . Hover . | . . Flight . | . . Utility 3 | 1 2 Device 1 | . 1 Storage 2 | 1 1 Processor . | . . Hackware . | . . Protection . | . . Artifact . | . . Weapon 4 | 2 2 Energy Gun 1 | . 1 Energy Cannon . | . . Ballistic Gun 2 | 2 . Ballistic Cannon . | . . Launcher 1 | . 1 Special Weapon . | . . Impact Weapon . | . . Slashing Weapon . | . . Piercing Weapon . | . . Special Melee Weapon . | . . Unidentified Prototypes . | . . Parts Lost 6 | . 6 Power 1 | . 1 Propulsion 2 | . 2 Utility 1 | . 1 Weapon 2 | . 2 Highest Loss Streak 5 | . 5 To Critical Strikes . | . . Average Backups 1 | . 1 Power . | . . Propulsion . | . . Utility . | . . Weapon . | . . Tool/Special . | . . Unused Backups . | . . Power . | . . Propulsion . | . . Utility . | . . Weapon . | . . Tool/Special . | . . Average Slot Usage (%) 61 | . 61 Engine 5 | . 5 Treads 12 | . 12 Device 3 | . 3 Storage 16 | . 16 Energy Gun 7 | . 7 Ballistic Gun 12 | . 12 Launcher 3 | . 3 Peak Build Rating 7 | 6 7 Average Rating 4 | 4 4 On Entrance 3 | . 6 Avg Prop Armor Cover (%) . | . . Naked Turns . | . . Heaviest Build 88 | 11 88 Greatest Support 40 | 40 40 Greatest Overweight (x) 29 | . 29 Average Overweight (x) 4 | . 5 Largest Inventory Capacity 25 | 8 25 Average Capacity 18 | 7 20 Most Carried 3 | 2 3 Average Carried 1 | . 1 Final Capacity 25 | 8 25 Final Carried . | . . Class Distribution -------------------- 100% | Mutant Dominant Class ---------------- Mutant | -10/Materials Resources | -11 -10 ----------- Run | Yrd Mat Matter Collected 411 | 212 199 Remotely . | . . Salvage Created 236 | . 236 Parts 19 | . 19 Haulers Intercepted . | . . Recyclers Shooed . | . . Parts Field Recycled . | . . Retrieved Matter . | . . Parts Self-Destructed . | . . Prevented . | . . Parts Restored . | . . Kills | -11 -10 ------- Run | Yrd Mat Combat Hostiles Destroyed 7 | . 7 Guns 5 | . 5 AOE 2 | . 2 Classes Destroyed 3 | . 3 Worker 2 | . 2 Swarmer 3 | . 3 Grunt 4 | . 4 Best Kill Streak 3 | . 3 Combat Bots Only 3 | . 3 Max Kills in Single Turn 2 | . 2 Gunslinging . | . . Exploded 2 | . 2 Melee . | . . Uniques/NPCs Destroyed . | . . Combat | -11 -10 -------- Run | Yrd Mat Hostile Shots Fired 107 | . 107 Missed 27 | . 27 Hits 80 | . 80 Projectile 80 | . 80 Critical Strikes 1 | . 1 Damage Taken 913 | . 913 Core 256 | . 256 Absorbed by Shields . | . . Core Remaining (%) 100 | 100 . Volleys Fired 49 | . 49 Largest 2 | . 2 Hottest 70 | . 70 Shots Fired 76 | . 76 Gun 75 | . 75 Cannon . | . . Launcher 1 | . 1 Special . | . . Kinetic 64 | . 64 Thermal 11 | . 11 Explosive 1 | . 1 Electromagnetic . | . . Robot Hit Streak 5 | . 5 Robot Miss Streak 2 | . 2 Penetration Max . | . . Secondary Targets 1 | . 1 Max Gunslinging Chain 1 | . 1 Shots Hit Robots 38 | . 38 Core Hits 15 | . 15 Critical Kills . | . . Critical Parts Destroyed . | . . Critical Strikes . | . . Melee Attacks . | . . Impact . | . . Slashing . | . . Piercing . | . . Sneak Attacks . | . . Combat Hostiles . | . . Follow-up Attacks . | . . Damage Inflicted 469 | . 469 Guns 369 | . 369 Cannons . | . . Explosions 99 | . 99 Melee . | . . Ramming 1 | . 1 Kinetic 323 | . 323 Thermal 46 | . 46 Explosive 99 | . 99 Electromagnetic . | . . Impact . | . . Slashing . | . . Piercing . | . . Highest Corruption 1 | . 1 Average Corruption 1 | . 1 Corruption Purged . | . . Corruption Blocked . | . . Effects 7 | . 7 Message Errors 2 | . 2 Matter Fused 1 | . 1 Energy Discharges 1 | . 1 Parts Rejected 1 | . 1 Data Loss (minor) 2 | . 2 Overload Shots . | . . Overflow Damage 5 | . 5 Projectiles . | . . Explosions 5 | . 5 Melee . | . . Knockbacks . | . . Impact . | . . Kinetic . | . . Secondary . | . . Self-Inflicted Damage 30 | . 30 Shots 1 | . 1 Rammed 1 | . 1 Targets Rammed 1 | . 1 Kicked . | . . Crushed . | . . Highest Temperature 12 | . 12 Average Temperature 7 | . 7 Received Heat Transfer 384 | . 384 Siege Activations . | . . Martial Activations . | . . Shielding Activations . | . . Robots Disrupted . | . . Combat Hostiles . | . . Robots Corrupted . | . . Combat Hostiles . | . . Parts Fried . | . . Impact Corruptions . | . . Robots Melted . | . . Combat Hostiles . | . . Parts Melted . | . . Heat Transferred 100 | . 100 Parts Sabotaged . | . . Parts Stolen . | . . Parts Stripped . | . . Power Chain Reactions . | . . Alert | -11 -10 ------- Run | Yrd Mat Maximum Alert Level . | . . Low Security (%) 100 | 100 100 Level 1 . | . . Level 2 . | . . Level 3 . | . . Level 4 . | . . Level 5 . | . . High Security . | . . Max Security . | . . Peak Influence 60 | . 60 Initial . | . . Average 8 | . 9 Influence Increases 188 | . 188 Destroy 0b10 Robot/C 140 | . 140 Destroy 0b10 Robot/NC 10 | . 10 Destroy Leader 30 | . 30 Destroy Structure 8 | . 8 Influence Decreases 188 | . 188 Time Decay 148 | . 148 Lost Part 40 | . 40 Squads Dispatched 1 | . 1 Investigation . | . . Extermination . | . . Reinforcement 1 | . 1 Assault . | . . Garrison . | . . Intercept . | . . Searches Triggered . | . . Construction Impeded . | . . Haulers Reinforced . | . . Active Scanning Responses . | . . Cargo Convoy Interrupts . | . . Stealth | -11 -10 --------- Run | Yrd Mat Distress Signals 1 | . 1 Communications Jammed . | . . Distress Signals . | . . Times Spotted 16 | . 16 Peak Tracking Total 6 | . 6 Tactical Retreats . | . . Traps | -11 -10 ------- Run | Yrd Mat Traps Triggered 1 | . 1 Indirectly . | . . Trap Hack Attempts . | . . Triggered . | . . Disarmed . | . . Reprogrammed . | . . Reused . | . . Traps Extracted . | . . Installed . | . . Triggered . | . . Machines | -11 -10 ---------- Run | Yrd Mat Machines Disabled . | . . Max in Single Turn . | . . Machines Repaired . | . . Machines Dismantled . | . . Machines Sabotaged . | . . Overloaded Fab Kills . | . . Hacking | -11 -10 --------- Run | Yrd Mat Machines Accessed 1 | . 1 Terminals . | . . Fabricators . | . . Repair Stations . | . . Recycling Units 1 | . 1 Scanalyzers . | . . Garrison Access . | . . Total Hacks 6 | . 6 Successful 3 | . 3 Failed 3 | . 3 Catastrophic . | . . Database Lockouts . | . . Manual . | . . Terminals . | . . Fabricators . | . . Repair Stations . | . . Recycling Units 6 | . 6 Scanalyzers . | . . Garrison Access . | . . Terminal Hacks . | . . Fabricator Hacks . | . . Repair Station Hacks . | . . Recycling Unit Hacks 3 | . 3 Process 1 | . 1 Report Inventory 1 | . 1 Retrieve Components 1 | . 1 Scanalyzer . | . . Garrison Access Hacks . | . . Unauthorized Hacks . | . . Terminals . | . . Fabricators . | . . Repair Stations . | . . Recycling Units . | . . Scanalyzers . | . . Garrison Access . | . . Data Cores Recovered . | . . Used . | . . Hacking Detections 1 | . 1 Full Trace Events 1 | . 1 Feedback Events 1 | . 1 Corruption 1 | . 1 Feedback Blocked . | . . Robot Schematics Acquired . | . . Robots Built . | . . Authchips . | . . Time . | . . Total Robot Build Rating . | . . Part Schematics Acquired . | . . Parts Built . | . . Authchips . | . . Time . | . . Total Part Build Rating . | . . Part Studies Acquired . | . . Parts Repaired . | . . Time . | . . Parts Recycled . | . . Recycled Matter . | . . Retrieved Matter . | . . Retrieved Components 1 | . 1 Parts Scanalyzed . | . . Part Schematics Acquired . | . . Parts Damaged . | . . Bothacking | -11 -10 ------------ Run | Yrd Mat Used RIF Installer . | . . Robots Hacked . | . . Non-combat . | . . Combat . | . . Robot Hacks Applied . | . . Relay Couplers Released . | . . Fabnet Peak Effective % . | . . Robots Rewired . | . . Allies Hacked . | . . Hacks Repelled . | . . Allies | -11 -10 -------- Run | Yrd Mat Total Allies . | . . Largest Group . | . . Highest-Rated Group . | . . Highest-Rated Ally . | . . Total Orders . | . . Ally Attacks . | . . Total Damage . | . . Kills . | . . Allies Corrupted . | . . Allies Melted . | . . Intel | -11 -10 ------- Run | Yrd Mat Active Infowar (turns) . | . . Robot Analysis Total . | . . Derelict Logs Recovered . | . . Drone Launches . | . . Drone Recoveries . | . . Exploration | -11 -10 ------------- Run | Yrd Mat Turns Passed 928 | 89 839 Spaces Moved 204 | 43 161 Core 37 | 6 31 Treads 167 | 37 130 Legs . | . . Wheels . | . . Hover . | . . Flight . | . . Fastest Speed 50 | 50 160 Average Speed 366 | 144 426 Slowest Speed 1500 | 160 1500 Overloaded Moves . | . . Propulsion Burnouts . | . . Robots Hopped . | . . Potential Cave-ins . | . . Cave-ins Triggered . | . . Exploration Rate (%) 20 | 4 37 Regions Visited 1 Branch Regions . Pre-discovered Areas . | . . Known Exits Taken . | . . Unknown Exits Taken 1 | 1 . Scrap Searched . | . . Spaces Dug . | . . Terrain Destroyed 6 | . 6 Melee . | . . Projectile . | . . AOE 6 | . 6 Terrain Rammed . | . . Walls Destroyed . | . . Machines Disabled . | . . Actions | -11 -10 --------- Run | Yrd Mat Total 316 | 70 246 Wait 33 | 16 17 Move 203 | 42 161 Hop . | . . Pick Up 12 | 6 6 Fast Attach . | . . Attach 12 | 6 6 Detach 1 | . 1 Swap 3 | . 3 Drop 2 | . 2 Fire 49 | . 49 Melee . | . . Ram 1 | . 1 Kick . | . . Crush . | . . Escape Stasis . | . . Rewire . | . . Trap . | . . Miscellaneous . | . . Route ------- -11/Scrapyard -10/Materials (discovered 1 exit: [*Min]) History --------- Turn | Location | Event 29 | -11/Scrapyard | Discovered new exit (range 15) 90 | -11/Scrapyard | Entered Materials 318 | -10/Materials | Build established: Mutant 442 | -10/Materials | Core integrity fell below 50% 454 | -10/Materials | Core integrity fell below 20% 494 | -10/Materials | Lost 5 parts (2n1u2w) 583 | -10/Materials | Discovered new exit (range 12) 929 | -10/Materials | Destroyed by S-10 Pest with Light Assault Rifle Last Messages --------------- Dropped Broken Grenade Launcher. R-06 Scavenger collects Broken Grenade Launcher. H0R1W9DP1%FI3%, K-01 Serf cleans the TF Node. System corrupted: Energy discharge (-39). Acquired 36 matter. Acquired 47 matter. K-01 Serf cleans the Neutrino Reactor. Acquired 23 matter. K-01 Serf cleans the Neutrino Reactor. K-01 Serf destroyed. System corrupted: Component data lost. K-01 Serf cleans the Neutrino Reactor. R-06 Scavenger collects Wheel. K-01 Serf cleans the Neutrino Reactor. K-01 Serf collects debris. Acquired Lgt. Ion Engine. K-01 Serf collects debris. K-01 Serf destroyed. System corrupted: Sml. Laser rejected. Map ----- +----------------------------------------------------+ | ?????????????????????????????????????????????????? | | ?????????????????????????????????????????????????? | | ?????????????????????????????????????????????????? | | ?????????????????????????????????????????????????? | | ?????????????????????????????????????????????????? | | ?????????????????????????????????????????????????? | | ???????????? ??????????????????????????????????? | | ??????????? ??????????????????????????????????? | | ???????????# ??????????????????????????????????? | | ???????????# ??????????????????????????????????? | | ???????????# #?????????????????????????????????? | | ???????????# #?????????????????????????????????? | | ???????????# #?????????????????????????????????? | | ???????????# #?????????????????????????????????? | | ???????????# #?????????????????????????????????? | | ############ T?????????????????????????????????? | | # #?????????????????????????????????? | | # #?????????????????????????????????? | | """ """ # #???#######+############??????????? | | """ """ # #??## ^! ??????????? | | """ """ # ##?#" !!! ??????????? | | # ##?#T """ ?????????? | | #+#####+#### ##?#" """ ^ ?????????? | | # ### ## ##### """ ^ /! ????????? | | r [! ????????? | | " %@ [! ????????? | | % s ????????? | | ## #######+## [ s ????????? | | ### ##?? #^^ #####+##### ?????????? | | #?# #??? # ^ #????????????????????? | | #?# #??? # #????????????????????? | | #?# #??? #^ + ??????????????????? | | ####?# #??? #^ #### ????????????????? | | ?????# #???####### ^ ## #????*! ???????????????? | | ?????# #????????? ? #?????! ???????????????? | | ?????# #????????" ? #??????? ??????????????? | | ?????# #????????| # #???????? ?????????????? | | ?????# #???????"" < # ??????????????????????? | | ###### #???????|| #k#??????????????????????? | | #????????" #u???????????????????????? | | #???????? # ???????????????????????? | | #????????## ##????????????????????????? | | #####+#####????????? ??????????????????????????? | | # """ #??????????????????????????????????????? | | # "T" #??????????????????????????????????????? | | # #??????????????????????????????????????? | | # #??????????????????????????????????????? | | # """ """ #??????????????????????????????????????? | | # """ """ #??????????????????????????????????????? | | # """ """ #??????????????????????????????????????? | +----------------------------------------------------+ Best States ------------- Heat Dissipation 35 Energy Generation 10 Energy Capacity 125 Matter Stores 269 Matter Capacity 300 Sight Range 16 Terrain Scan Density 10 Evasion (%) 40 Recoil Reduction 2 Item Schematics ----------------- None Robot Schematics ------------------ None Fabricated ------------ Nothing Repaired ---------- Nothing Studied --------- None Alien Tech Used ----------------- None Achievements -------------- None Challenges ------------ None Game ------ Seed TripodGravityStatue Manual? 0 Play Time 00:14:00 Cumulative 0.4 hours Start 2026.06.24 @ 20:15:49 End 2026.06.24 @ 20:27:21 Sessions 1 Manual Loads 0 Difficulty Rogue Special Mode None Game No. 5 Rogue 5 Adventurer 0 Explorer 0 Win Type - Total 0 Types 0/0/0/0/0/0/0/0/0/0 Lore% 0 Gallery% 2 Achievement% 2 Wizard Run 0 Options --------- Layout 1 ASCII 0 Keyboard 0 Movement Mouse Keybinds 0 Fullscreen 1 Font 24/Smallcaps Map View 50x35 Zoom Use 4% Tactical HUD 0 Map Filters NONE Filters NONE Steam 1 RUN: 7a102d6b-46c8-4dd7-bf8b-b234e4a0fee1